bitfinex/quotes_BTCUSD_20260126
["timestamp","ask_amount","ask_price","bid_price","bid_amount"]
[1769452021834,0.0113488,88115.0,88084.0,0.02724897]
[1769452022028,7.742e-05,88113.0,88084.0,0.02724897]
[1769452022146,0.01134906,88113.0,88084.0,0.02724897]
[1769452022352,7.742e-05,88112.0,88084.0,0.02724897]
[1769452022818,0.03,88111.0,88084.0,0.02724897]
[1769452023019,7.742e-05,88110.0,88084.0,0.02724897]
[1769452023259,7.742e-05,88108.0,88086.0,0.06811499]
[1769452023517,7.742e-05,88108.0,88087.0,0.02724897]
[1769452024351,7.742e-05,88107.0,88087.0,0.02724897]
[1769452024569,7.742e-05,88107.0,88088.0,0.0567609]
[1769452024737,7.742e-05,88107.0,88088.0,0.02724897]
[1769452024942,7.742e-05,88107.0,88087.0,0.01135241]
[1769452025124,0.03007742,88107.0,88088.0,0.02724897]
[1769452025526,7.742e-05,88106.0,88088.0,0.02724897]
[1769452026315,0.03007742,88106.0,88088.0,0.01135228]
[1769452026484,0.03007742,88106.0,88090.0,0.02724897]
[1769452026718,0.03,88106.0,88091.0,0.02724897]
[1769452026862,0.03,88106.0,88093.0,0.02724897]
[1769452027273,0.03,88105.0,88093.0,0.02724897]
[1769452027669,0.03,88105.0,88092.0,0.69865683]
[1769452027883,0.03,88105.0,88096.0,0.02724897]
[1769452028268,0.03,88104.0,88096.0,0.02724897]
[1769452029303,0.03,88126.0,88096.0,0.02724897]
[1769452029505,0.03,88124.0,88094.0,0.68730507]
[1769452029671,0.03,88122.0,88095.0,0.02500009]
[1769452029866,0.03,88118.0,88095.0,0.02500009]
[1769452030168,0.03,88116.0,88095.0,0.02500009]
[1769452030379,0.03899513,88116.0,88095.0,0.02500009]
[1769452030605,0.03899513,88116.0,88096.0,0.02352857]
[1769452030823,0.03899513,88116.0,88096.0,0.01135125]
[1769452031024,0.03899513,88116.0,88097.0,0.02352857]
[1769452031244,0.04544,88129.0,88097.0,0.02352857]
[1769452031245,0.03,88115.0,88098.0,0.68730507]
[1769452031451,0.03,88115.0,88099.0,0.02352857]
[1769452031703,0.04250706,88115.0,88099.0,0.02352857]
[1769452032082,0.01250706,88114.0,88099.0,0.02352857]
[1769452032290,0.03,88113.0,88099.0,0.02352857]
[1769452032831,0.03,88111.0,88099.0,0.02352857]
[1769452033048,0.03,88111.0,88092.0,0.68730507]
[1769452033049,0.04250706,88111.0,88092.0,0.71083364]
[1769452033321,0.03,88109.0,88092.0,0.71083364]
[1769452034431,0.04250706,88109.0,88092.0,0.71083364]
[1769452035831,0.06745932,88109.0,88092.0,0.71083364]
[1769452036048,0.02495226,88108.0,88092.0,0.71083364]
[1769452036277,0.03,88107.0,88092.0,0.71083364]
[1769452038127,0.03,88100.0,88092.0,0.17448]
[1769452038342,0.03,88098.0,88092.0,0.17448]
[1769452039637,0.03,88097.0,88092.0,0.17448]
[1769452039866,0.05468908,88097.0,88092.0,0.17448]
[1769452040043,0.03,88097.0,88092.0,0.17448]
[1769452040570,0.03,88102.0,88092.0,0.17448]
[1769452042109,0.00588749,88098.0,88086.0,0.04544]
[1769452042341,0.0002719,88092.0,88086.0,0.04544]
[1769452042510,0.03,88094.0,88086.0,0.04544]
[1769452044405,0.03,88093.0,88086.0,0.04544]
[1769452045366,0.03,88092.0,88086.0,0.04544]
[1769452046561,0.03,88089.0,88086.0,0.04544]
[1769452046834,0.03,88087.0,88086.0,0.04544]
[1769452047636,0.03,88092.0,88086.0,0.04544]
[1769452048384,0.02468908,88105.0,88087.0,0.69036879]
[1769452048791,0.03,88102.0,88087.0,0.69036879]
[1769452048988,0.03,88100.0,88087.0,0.69036879]
[1769452049990,0.03,88099.0,88087.0,0.69036879]
[1769452050960,0.03,88099.0,88086.0,0.04544]
[1769452051161,0.03,88098.0,88086.0,0.04544]
[1769452052137,0.03,88099.0,88086.0,0.04544]
[1769452052378,0.03588749,88099.0,88086.0,0.04544]
[1769452052541,0.03,88097.0,88086.0,0.04544]
[1769452053446,0.03588749,88095.0,88086.0,0.04544]
[1769452053647,0.05468908,88095.0,88086.0,0.04544]
[1769452053875,0.10208626,88121.0,88089.0,0.02298711]
[1769452054073,0.0164265,88114.0,88091.0,0.02298711]
[1769452054298,0.11357186,88113.0,88091.0,0.02298711]
[1769452054499,0.00588749,88110.0,88091.0,0.02298711]
[1769452054699,0.00588749,88107.0,88091.0,0.02298711]
[1769452055120,0.03,88106.0,88091.0,0.02071862]
[1769452055267,0.00588749,88105.0,88091.0,0.02071862]
[1769452055670,0.00588749,88103.0,88085.0,0.72470857]
[1769452055873,0.00588749,88103.0,88086.0,0.06842711]
[1769452056088,0.03,88104.0,88087.0,0.69036879]
[1769452056423,0.03,88104.0,88089.0,0.02298711]
[1769452056849,0.04544,88118.0,88094.0,0.69036879]
[1769452057047,0.00588749,88122.0,88097.0,0.02298711]
[1769452057182,0.00588749,88118.0,88097.0,0.02298711]
[1769452057382,0.02371857,88122.0,88097.0,0.69036879]
[1769452057599,0.00588749,88120.0,88099.0,0.69036879]
[1769452057776,0.03,88120.0,88100.0,0.02298711]
[1769452058036,0.00588749,88119.0,88100.0,0.02298711]
[1769452058337,0.03,88117.0,88100.0,0.02298711]
[1769452058508,0.00588749,88114.0,88093.0,0.69036879]
[1769452058704,0.03,88115.0,88096.0,0.02298711]
[1769452058926,0.03,88115.0,88099.0,0.69036879]
[1769452059124,0.03,88115.0,88100.0,0.02298711]
[1769452059563,0.03,88114.0,88100.0,0.02298711]
[1769452060045,0.03,88111.0,88093.0,0.69036879]
[1769452060247,0.00588749,88110.0,88093.0,0.69036879]
[1769452060790,0.03,88106.0,88085.0,0.02298711]
[1769452061017,0.03588749,88106.0,88087.0,0.02298711]
[1769452061216,0.03588749,88106.0,88088.0,0.69036879]
[1769452061421,0.03588749,88106.0,88088.0,0.72470818]
[1769452061618,0.03588749,88106.0,88089.0,0.01135215]
[1769452061818,0.03,88105.0,88092.0,0.69036879]
[1769452062021,0.03,88105.0,88092.0,0.7133559]
[1769452062797,0.03,88105.0,88090.0,0.54308487]
[1769452063002,0.03,88104.0,88093.0,0.7133559]
[1769452063667,0.03,88104.0,88094.0,0.38002892]
[1769452063897,0.03,88112.0,88094.0,0.38002892]
[1769452064037,0.03,88107.0,88088.0,0.02298711]
[1769452064222,0.01153591,88118.0,88088.0,0.02298711]
[1769452064223,0.06057657,88105.0,88090.0,0.38002892]
[1769452064425,0.06057657,88105.0,88090.0,0.39138094]
[1769452064826,0.06057657,88105.0,88090.0,0.38002892]
[1769452065072,0.05468908,88105.0,88090.0,0.39138094]
[1769452065272,0.05468908,88105.0,88090.0,0.38002892]
[1769452065471,0.03,88104.0,88097.0,0.69036879]
[1769452066342,0.02468908,88113.0,88097.0,0.69036879]
[1769452066343,0.03,88112.0,88097.0,0.69036879]
[1769452068181,0.03,88111.0,88092.0,0.02298711]
[1769452068380,0.03,88107.0,88092.0,0.02298711]
[1769452068638,0.03,88107.0,88090.0,0.38002892]
[1769452068803,0.03,88105.0,88090.0,0.38002892]
[1769452069412,0.03588749,88103.0,88086.0,0.02464348]
[1769452069626,0.03,88103.0,88086.0,0.02464348]
[1769452069984,0.03588749,88101.0,88085.0,0.63962096]
[1769452071214,0.03,88101.0,88085.0,0.63962096]
[1769452071419,0.03,88100.0,88086.0,0.66426444]
[1769452071599,0.23375264,88110.0,88086.0,0.63962096]
[1769452071793,5.887e-05,88108.0,88090.0,0.38002892]
[1769452072001,5.887e-05,88107.0,88090.0,0.38002892]
[1769452072558,5.887e-05,88103.0,88082.0,0.02464348]
[1769452072682,0.00507631,88101.0,88082.0,0.02464348]
[1769452072881,5.887e-05,88100.0,88082.0,0.02464348]
[1769452073193,5.887e-05,88100.0,88082.0,0.63962096]
[1769452073397,5.887e-05,88100.0,88084.0,0.63962096]
[1769452073513,5.887e-05,88100.0,88085.0,0.02464348]
[1769452073715,0.03,88101.0,88091.0,0.02464348]
[1769452073924,0.03,88101.0,88093.0,0.63962096]
[1769452074271,0.03,88101.0,88098.0,0.02951997]
[1769452074418,0.03,88101.0,88100.0,0.02951997]
[1769452074620,0.03,88100.0,88092.0,0.02951997]
[1769452075805,0.03,88099.0,88090.0,0.38002892]
[1769452076850,0.03,88098.0,88091.0,0.63962096]
[1769452077026,0.03,88098.0,88091.0,0.0295276]
[1769452077734,0.03,88097.0,88090.0,0.38002892]
[1769452078033,0.03,88097.0,88087.0,0.38002892]
[1769452078240,0.03,88097.0,88087.0,0.42702266]
[1769452078479,5.887e-05,88117.0,88097.0,0.04150457]
[1769452078659,5.887e-05,88117.0,88100.0,0.38002892]
[1769452078832,5.887e-05,88117.0,88100.0,0.41180539]
[1769452079034,5.887e-05,88117.0,88097.0,0.64934906]
[1769452079035,0.03,88122.0,88107.0,0.41180539]
[1769452080018,0.04544,88130.0,88107.0,0.38002892]
[1769452080216,0.0058207,88139.0,88120.0,0.38002892]
[1769452080416,0.0058207,88137.0,88120.0,0.38002892]
[1769452080771,0.03,88137.0,88114.0,0.17448]
[1769452080973,0.03,88131.0,88114.0,0.17448]
[1769452081155,0.04152558,88129.0,88114.0,0.17448]
[1769452081661,0.03,88127.0,88114.0,0.17448]
[1769452081862,0.03,88125.0,88113.0,0.03177647]
[1769452082281,0.03,88123.0,88107.0,0.02952767]
[1769452082511,0.03,88119.0,88107.0,0.02952767]
[1769452082693,0.03,88117.0,88107.0,0.02952767]
[1769452083065,0.03,88117.0,88102.0,0.02952767]
[1769452083852,0.03,88117.0,88103.0,0.02952767]
[1769452084151,0.03,88116.0,88105.0,0.01135009]
[1769452084484,0.03,88116.0,88107.0,0.02464348]
[1769452085000,0.03,88121.0,88107.0,0.02464348]
[1769452085821,0.03,88121.0,88107.0,0.63962096]
[1769452086137,0.03,88126.0,88110.0,0.02464348]
[1769452086977,0.03,88126.0,88111.0,0.02464348]
[1769452087175,0.03,88131.0,88111.0,0.02464348]
[1769452087496,0.03,88121.0,88102.0,0.63962096]
[1769452087690,0.01152558,88120.0,88103.0,0.02464348]
[1769452087888,0.03,88119.0,88103.0,0.02464348]
[1769452088466,0.03,88119.0,88101.0,0.17448]
[1769452088672,0.04152558,88117.0,88099.0,0.02464348]
[1769452088889,0.03,88117.0,88101.0,0.63962096]
[1769452089090,0.03,88117.0,88098.0,0.17444]
[1769452089091,0.03,88117.0,88102.0,0.66426444]
[1769452089615,0.03,88117.0,88102.0,0.63962096]
[1769452089776,0.03,88116.0,88103.0,0.02464348]
[1769452090387,0.04152558,88116.0,88103.0,0.02464348]
[1769452090709,0.03,88115.0,88103.0,0.02464348]
[1769452091511,0.02229339,88119.0,88103.0,0.02464348]
[1769452091721,0.02229339,88119.0,88102.0,0.05675235]
[1769452091722,0.01152558,88127.0,88106.0,0.02464348]
[1769452091960,0.04152558,88126.0,88107.0,0.66426444]
[1769452092109,0.03,88124.0,88107.0,0.63962096]
[1769452092307,0.03,88124.0,88108.0,0.02464348]
[1769452093197,0.03,88125.0,88108.0,0.02464348]
[1769452093397,0.03,88123.0,88108.0,0.02464348]
[1769452094717,0.02261547,88125.0,88108.0,0.02464348]
[1769452094718,0.04152558,88122.0,88108.0,0.02464348]
[1769452094971,0.04152558,88122.0,88106.0,0.63962096]
[1769452095533,0.17444,88142.0,88116.0,0.04094515]
[1769452095751,0.17036143,88163.0,88094.0,0.82282676]
[1769452095752,0.03,88143.0,88110.0,0.47484837]
[1769452095936,0.03,88135.0,88112.0,0.02464348]
[1769452096136,0.03,88131.0,88113.0,0.81406096]
[1769452096569,0.02967792,88132.0,88131.0,0.0097281]
[1769452096900,0.02967792,88132.0,88131.0,0.0037281]
[1769452097399,0.02967792,88132.0,88131.0,5.826e-05]
[1769452098081,0.01134661,88132.0,88108.0,0.80874338]
[1769452098345,0.01232685,88131.0,88108.0,0.83338686]
[1769452098510,0.05261547,88126.0,88108.0,0.83338686]
[1769452098716,0.03,88126.0,88108.0,0.65894686]
[1769452098896,0.03,88120.0,88102.0,0.75305466]
[1769452099066,0.01134751,88125.0,88102.0,0.06967945]
[1769452099067,0.04232685,88118.0,88102.0,0.06967945]
[1769452099701,0.03,88118.0,88102.0,0.04544]
[1769452099907,0.00589418,88107.0,88083.0,0.68337521]
[1769452100171,0.02358101,88108.0,88088.0,0.68337521]
[1769452100319,0.02358101,88108.0,88089.0,0.02423945]
[1769452100516,0.02358101,88108.0,88090.0,0.70761466]
[1769452100716,0.0058365,88110.0,88090.0,0.68337521]
[1769452100915,0.02358101,88115.0,88093.0,0.02423945]
[1769452101116,0.05358101,88114.0,88094.0,0.70761466]
[1769452101320,0.02941751,88113.0,88094.0,0.70761466]
[1769452101498,0.0058365,88111.0,88094.0,0.70761466]
[1769452101921,0.03,88112.0,88096.0,0.68337521]
[1769452102126,0.03,88110.0,88089.0,0.68337521]
[1769452102288,0.05941751,88110.0,88089.0,0.70761466]
[1769452102494,0.0358365,88108.0,88089.0,0.70761466]
[1769452102941,0.0358365,88108.0,88091.0,0.68337521]
[1769452103242,0.0358365,88108.0,88091.0,0.70761466]
[1769452104026,0.03,88108.0,88093.0,0.68337521]
[1769452104544,0.03,88106.0,88090.0,0.38008127]
[1769452104908,0.03,88106.0,88090.0,0.37008127]
[1769452104909,0.05358101,88106.0,88090.0,0.37008127]
[1769452105480,0.03,88102.0,88090.0,0.38008127]
[1769452105609,0.0358365,88102.0,88090.0,0.38008127]
[1769452106158,0.03,88095.0,88088.0,0.005676]
[1769452106357,0.05941751,88095.0,88088.0,0.005676]
[1769452106871,0.03,88093.0,88088.0,0.005676]
[1769452107119,0.0358365,88091.0,88088.0,0.005676]
[1769452107288,0.02358101,88092.0,88088.0,0.005676]
[1769452107529,0.02358101,88099.0,88088.0,0.005676]
[1769452107718,5.837e-05,88096.0,88088.0,0.005676]
[1769452108155,0.03005837,88095.0,88085.0,0.0003649]
[1769452108390,0.05363938,88095.0,88085.0,0.0002044]
[1769452108600,0.03,88095.0,88085.0,0.0002044]
[1769452108810,0.03,88093.0,88085.0,0.0002044]
[1769452109875,5.837e-05,88091.0,88085.0,0.0002044]
[1769452110090,0.03005837,88087.0,88085.0,0.0002044]
[1769452110610,0.05363938,88087.0,88085.0,0.0002044]
[1769452111399,0.05358101,88086.0,88085.0,0.0002044]
[1769452112240,0.05363938,88086.0,88085.0,0.0002044]
[1769452112628,5.837e-05,88092.0,88085.0,0.0002044]
[1769452113054,0.02363938,88092.0,88085.0,0.0002044]
[1769452113517,0.09072304,88125.0,88085.0,0.0002044]
[1769452113695,0.03,88114.0,88087.0,0.02423945]
[1769452114033,0.03,88106.0,88087.0,0.02423945]
[1769452114204,0.05358101,88106.0,88087.0,0.02423945]
[1769452114387,0.05358101,88106.0,88088.0,0.01135228]
[1769452114590,0.05358101,88106.0,88087.0,0.02423945]
[1769452115401,0.03,88104.0,88087.0,0.02423945]
[1769452115962,0.02458101,88106.0,88093.0,0.01135163]
[1769452116110,0.001,88106.0,88092.0,0.02423945]
[1769452116629,0.03,88112.0,88093.0,0.03559108]
[1769452116630,0.05358101,88112.0,88093.0,0.03559108]
[1769452116779,0.03,88110.0,88093.0,0.02423945]
[1769452117830,0.03,88109.0,88093.0,0.02423945]
[1769452118041,0.03,88109.0,88094.0,0.68337521]
[1769452118194,0.03,88109.0,88095.0,0.02423945]
[1769452118823,0.03,88108.0,88095.0,0.02423945]
[1769452119463,0.02358101,88137.0,88097.0,0.04094515]
[1769452119665,0.02358101,88137.0,88113.0,0.68337521]
[1769452119860,0.00583523,88134.0,88114.0,0.70761466]
[1769452120042,0.03,88132.0,88114.0,0.70761466]
[1769452120238,0.03,88130.0,88114.0,0.70761466]
[1769452120639,0.03583523,88130.0,88114.0,0.70761466]
[1769452120976,0.05941624,88130.0,88114.0,0.70761466]
[1769452121302,0.00583523,88127.0,88109.0,0.70761466]
[1769452121439,0.00583523,88127.0,88109.0,0.74317711]
[1769452121639,0.00583523,88127.0,88109.0,0.7074569]
[1769452122772,0.03,88126.0,88109.0,0.7074569]
[1769452123087,0.05358101,88126.0,88109.0,0.7074569]
[1769452125268,0.03,88125.0,88111.0,0.68337521]
[1769452125876,0.05358101,88125.0,88105.0,0.70761466]
[1769452126081,0.03,88123.0,88105.0,0.70761466]
[1769452127379,0.03,88123.0,88105.0,0.68337521]
[1769452127591,0.03,88123.0,88107.0,0.68337521]
[1769452128325,0.03,88123.0,88107.0,0.01134983]
[1769452128572,0.02285629,88134.0,88110.0,0.05674703]
[1769452128746,0.02285629,88134.0,88114.0,0.02267636]
[1769452128951,0.02884771,88134.0,88115.0,0.02267636]
[1769452129536,0.02884771,88134.0,88116.0,0.69763803]
[1769452129939,0.00599142,88133.0,88116.0,0.69763803]
[1769452133884,0.02884771,88133.0,88116.0,0.69763803]
[1769452134068,0.02285629,88131.0,88110.0,0.37986771]
[1769452134267,0.02285629,88130.0,88111.0,0.69763803]
[1769452134855,9.55e-05,88135.0,88111.0,0.69763803]
[1769452135059,0.02295179,88135.0,88115.0,0.69763803]
[1769452135273,0.00599142,88134.0,88115.0,0.69763803]
[1769452135482,0.00599142,88132.0,88115.0,0.69763803]
[1769452135706,0.02285629,88131.0,88115.0,0.69763803]
[1769452136148,9.55e-05,88135.0,88115.0,0.69763803]
[1769452136328,0.02285629,88134.0,88115.0,0.69763803]
[1769452136529,0.02285629,88134.0,88117.0,0.69763803]
[1769452136889,5.991e-05,88139.0,88117.0,0.69763803]
[1769452137093,0.0229162,88139.0,88118.0,0.72031439]
[1769452137317,0.02285629,88139.0,88118.0,0.72031439]
[1769452137481,5.991e-05,88138.0,88118.0,0.72031439]
[1769452137901,0.02285629,88137.0,88118.0,0.72031439]
[1769452138104,0.0229162,88135.0,88118.0,0.72031439]
[1769452138302,5.991e-05,88134.0,88111.0,0.69763803]
[1769452138624,0.01134571,88139.0,88102.0,0.06810226]
[1769452138625,0.03,88124.0,88102.0,0.69763803]
[1769452138847,0.03005991,88122.0,88102.0,0.69763803]
[1769452139042,0.0529162,88122.0,88103.0,0.72031439]
[1769452139481,0.0229162,88118.0,88096.0,0.70898928]
[1769452139651,0.03,88117.0,88098.0,0.69763803]
[1769452139847,0.03,88117.0,88099.0,0.72031439]
[1769452140073,0.03,88117.0,88100.0,1.07750574]
[1769452140275,0.03,88117.0,88095.0,0.02267636]
[1769452140477,0.03,88117.0,88100.0,0.37986771]
[1769452140676,0.03,88115.0,88099.0,0.69763803]
[1769452140853,0.03,88113.0,88099.0,0.69763803]
[1769452141407,0.03,88113.0,88101.0,0.69763803]
[1769452141605,0.03,88113.0,88102.0,0.02267636]
[1769452141903,0.03,88112.0,88103.0,0.69763803]
[1769452142892,0.03,88119.0,88100.0,0.37986771]
[1769452143099,0.03,88115.0,88100.0,0.37986771]
[1769452143478,0.03,88115.0,88106.0,0.69763803]
[1769452143683,0.03,88115.0,88108.0,0.69763803]
[1769452144088,0.03005991,88138.0,88117.0,0.69763803]
[1769452144422,0.03,88134.0,88117.0,0.72031439]
[1769452145234,0.03,88134.0,88120.0,0.37986771]
[1769452145382,0.03,88134.0,88120.0,1.07750574]
[1769452145932,0.03,88133.0,88121.0,0.69763803]
[1769452146521,0.03,88133.0,88121.0,0.72031439]
[1769452147031,0.03,88132.0,88121.0,0.72031439]
[1769452148022,0.03,88131.0,88121.0,0.72031439]
[1769452148545,0.03,88131.0,88121.0,0.69763803]
[1769452148910,0.03,88134.0,88121.0,0.69763803]
[1769452149496,0.05285629,88134.0,88121.0,0.69763803]
[1769452150966,0.03,88134.0,88116.0,0.02267636]
[1769452151149,0.05285629,88131.0,88120.0,0.17444]
[1769452151956,0.37986771,88150.0,88120.0,0.55430771]
[1769452152142,0.03,88145.0,88130.0,0.37986771]
[1769452152287,0.03,88143.0,88130.0,0.37986771]
[1769452152485,0.03,88143.0,88130.0,1.07750574]
[1769452152693,0.03,88143.0,88129.0,0.02267636]
[1769452153294,0.03,88142.0,88129.0,0.02267636]
[1769452153568,0.03,88142.0,88125.0,0.69763803]
[1769452154369,0.03,88141.0,88125.0,0.69763803]
[1769452154934,0.03,88141.0,88130.0,0.37986771]
[1769452155117,0.02285629,88150.0,88132.0,0.02267636]
[1769452155318,0.03,88149.0,88133.0,0.69763803]
[1769452157356,0.03,88149.0,88132.0,0.02267636]
[1769452157601,0.02285629,88147.0,88130.0,0.37986771]
[1769452157809,0.03,88144.0,88130.0,0.37986771]
[1769452158104,0.02285629,88149.0,88130.0,0.37986771]
[1769452158303,0.02285629,88147.0,88130.0,0.37986771]
[1769452158506,0.02292622,88147.0,88130.0,0.37986771]
[1769452158877,0.37986771,88150.0,88129.0,0.69763803]
[1769452158878,0.03,88146.0,88129.0,0.69763803]
[1769452159083,0.03,88144.0,88130.0,0.37986771]
[1769452160921,0.03,88144.0,88130.0,1.03360886]
[1769452161273,0.03,88143.0,88130.0,1.03360886]
[1769452161477,0.03,88143.0,88131.0,0.65374115]
[1769452161691,0.0003146,88154.0,88134.0,0.02330085]
[1769452161897,0.02391881,88153.0,88134.0,0.02330085]
[1769452162098,6.993e-05,88152.0,88134.0,0.02330085]
[1769452162294,0.03,88150.0,88134.0,0.02330085]
[1769452163403,0.03,88149.0,88135.0,0.65374115]
[1769452163604,0.04134442,88149.0,88134.0,0.02330085]
[1769452164079,0.03,88149.0,88135.0,0.65374115]
[1769452164489,0.03,88148.0,88135.0,0.65374115]
[1769452164842,0.09072304,88168.0,88140.0,0.65374115]
[1769452164843,0.0003146,88154.0,88140.0,0.65374115]
[1769452165046,0.0003146,88154.0,88138.0,0.37986771]
[1769452165047,0.02391881,88164.0,88148.0,0.01]
[1769452165361,0.03006993,88168.0,88150.0,0.37986771]
[1769452165526,0.03006993,88168.0,88151.0,0.65374115]
[1769452167373,0.02391881,88169.0,88151.0,0.65374115]
[1769452167572,0.04134108,88175.0,88161.0,0.65374115]
[1769452167775,0.03,88173.0,88161.0,0.65366228]
[1769452168549,0.03,88173.0,88161.0,0.67696313]
[1769452168738,0.03,88172.0,88162.0,0.02330085]
[1769452168943,0.03,88172.0,88162.0,0.677042]
[1769452169349,0.03,88172.0,88153.0,0.65374115]
[1769452169554,0.03,88172.0,88154.0,0.02330085]
[1769452169802,0.03,88171.0,88154.0,0.02330085]
[1769452170756,0.03,88172.0,88154.0,0.02330085]
[1769452170958,0.04701731,88172.0,88154.0,0.02330085]
[1769452171112,0.03,88172.0,88154.0,0.02330085]
[1769452171318,0.03,88172.0,88150.0,0.37986771]
[1769452171319,0.02391881,88185.0,88163.0,0.65374115]
[1769452171515,0.01165362,88191.0,88172.0,0.65374115]
[1769452171717,0.031,88186.0,88160.0,0.37986771]
[1769452171916,0.031,88186.0,88163.0,0.02330085]
[1769452171917,0.03,88181.0,88163.0,0.02330085]
[1769452172121,0.03,88177.0,88163.0,0.02322198]
[1769452172302,0.03,88175.0,88161.0,0.03798677]
[1769452172688,0.03,88172.0,88161.0,0.03798677]
[1769452173700,0.03,88171.0,88150.0,0.37986771]
[1769452173900,0.03,88171.0,88153.0,0.677042]
[1769452174312,0.03,88171.0,88150.0,0.37986771]
[1769452174313,0.03,88171.0,88155.0,0.65374115]
[1769452174744,0.03,88171.0,88150.0,0.37986771]
[1769452174745,0.03,88170.0,88156.0,0.677042]
[1769452175819,0.70410843,88163.0,88141.0,0.1744]
[1769452176060,0.05391881,88161.0,88142.0,0.67799432]
[1769452176698,0.05391881,88161.0,88144.0,0.65374115]
[1769452177884,0.03,88158.0,88144.0,0.65374115]
[1769452180837,0.03,88157.0,88145.0,0.02330085]
[1769452181082,0.03,88157.0,88137.0,0.01134597]
[1769452181083,0.03,88157.0,88148.0,0.65374115]
[1769452181250,0.17436,88166.0,88149.0,0.02330085]
[1769452181593,0.17436,88166.0,88150.0,0.677042]
[1769452181993,0.03,88165.0,88150.0,0.677042]
[1769452182780,0.37963817,88160.0,88150.0,0.677042]
[1769452182989,0.03,88154.0,88136.0,0.04544]
[1769452183198,0.03,88152.0,88143.0,0.02330085]
[1769452183391,0.01134236,88165.0,88140.0,0.37963817]
[1769452183392,0.01134236,88165.0,88146.0,0.677042]
[1769452183578,0.06805451,88165.0,88146.0,0.677042]
[1769452183777,0.0352613,88164.0,88146.0,0.677042]
[1769452183994,0.37963817,88160.0,88146.0,0.677042]
[1769452184194,0.03,88159.0,88146.0,0.677042]
[1769452185208,0.03,88162.0,88146.0,0.677042]
[1769452185561,0.03,88158.0,88140.0,0.37963817]
[1769452185759,0.03,88156.0,88137.0,0.65374115]
[1769452185942,0.03,88156.0,88138.0,0.02330085]
[1769452186104,0.03,88156.0,88139.0,0.02330085]
[1769452186301,0.03,88156.0,88139.0,0.677042]
[1769452186539,0.03,88156.0,88140.0,0.02330085]
[1769452186743,0.05671892,88154.0,88136.0,0.04544]
[1769452186964,0.37963817,88160.0,88136.0,0.65374115]
[1769452186965,0.03,88147.0,88136.0,0.65374115]
[1769452187190,0.03,88147.0,88138.0,0.65374115]
[1769452187393,0.17436,88152.0,88140.0,0.02330085]
[1769452187565,0.17436,88152.0,88147.0,0.01]
[1769452187788,0.17436,88155.0,88143.0,0.02330085]
[1769452187969,0.03,88154.0,88143.0,0.02330085]
[1769452188832,0.03,88154.0,88135.0,0.0001574]
[1769452189074,0.03,88153.0,88138.0,0.02291941]
[1769452189261,0.03,88153.0,88139.0,0.02291941]
[1769452189471,0.03,88149.0,88135.0,0.0001574]
[1769452190836,0.64322002,88146.0,88135.0,0.0001574]
[1769452191173,0.03,88142.0,88122.0,0.66887619]
[1769452191331,0.03,88138.0,88120.0,0.37963817]
[1769452191530,0.67322002,88138.0,88120.0,0.40255758]
[1769452191952,0.03,88138.0,88122.0,0.02291941]
[1769452192120,0.03,88138.0,88124.0,0.02291941]
[1769452192321,0.03,88137.0,88124.0,0.02291941]
[1769452193128,0.03,88137.0,88128.0,0.02291941]
[1769452193334,0.03,88136.0,88122.0,0.02291941]
[1769452193536,0.03,88136.0,88124.0,0.02291941]
[1769452193776,0.03,88136.0,88125.0,0.02291941]
[1769452194151,0.81758002,88143.0,88125.0,0.02291941]
[1769452194421,0.03,88142.0,88130.0,0.37963817]
[1769452194699,0.03,88142.0,88131.0,0.02291941]
[1769452194900,0.03,88142.0,88131.0,0.66887619]
[1769452195199,0.03,88142.0,88133.0,0.02291941]
[1769452195422,0.03,88144.0,88133.0,0.02291941]
[1769452198595,0.03,88147.0,88133.0,0.02291941]
[1769452198733,0.03,88144.0,88133.0,0.02291941]
[1769452200331,0.03,88142.0,88121.0,0.02291941]
[1769452200543,0.67322002,88140.0,88121.0,0.02291941]
[1769452200743,0.03,88138.0,88121.0,0.02291941]
[1769452200952,0.67322002,88138.0,88121.0,0.02291941]
[1769452201578,0.03,88138.0,88123.0,0.66887619]
[1769452201797,0.03,88137.0,88126.0,0.02291941]
[1769452202043,0.03,88137.0,88120.0,0.37963817]
[1769452202245,0.03,88135.0,88119.0,0.02291941]
[1769452202453,0.67322002,88131.0,88118.0,0.0002879]
[1769452202662,0.67322002,88127.0,88118.0,0.0002879]
[1769452202889,0.03,88127.0,88118.0,0.0002879]
[1769452203091,0.64322002,88185.0,88153.0,0.65753158]
[1769452203288,0.66615475,88183.0,88170.0,0.37963817]
[1769452203488,0.64322002,88192.0,88170.0,1.04851436]
[1769452203640,0.03,88181.0,88171.0,0.02291941]
[1769452203823,0.0454,88187.0,88181.0,0.01]
[1769452204027,0.1744,88185.0,88181.0,0.01]
[1769452204444,0.64322002,88192.0,88181.0,0.01]
[1769452204660,0.03,88183.0,88171.0,0.02291941]
[1769452204858,0.03,88183.0,88170.0,0.66887619]
[1769452204859,0.03,88179.0,88156.0,0.02291941]
[1769452205080,0.03,88175.0,88157.0,0.02291941]
[1769452205438,0.03,88175.0,88158.0,0.02291941]
[1769452205737,0.03,88175.0,88160.0,0.6917956]
[1769452206075,0.03,88175.0,88161.0,0.02291941]
[1769452206279,0.03,88175.0,88158.0,0.02291941]
[1769452206620,0.03,88175.0,88158.0,0.66887619]
[1769452206827,0.03,88175.0,88159.0,0.02291941]
[1769452207024,0.46703469,88176.0,88159.0,0.02291941]
[1769452207262,0.46703469,88176.0,88159.0,0.66887619]
[1769452207465,0.03,88177.0,88161.0,0.66887619]
[1769452207671,0.03,88177.0,88162.0,0.02291941]
[1769452207874,0.03,88177.0,88167.0,0.01134211]
[1769452208087,0.0454,88189.0,88173.0,0.03426075]
[1769452208307,0.17436,88185.0,88174.0,0.6917956]
[1769452208511,0.03,88184.0,88174.0,0.6917956]
[1769452209293,0.03,88182.0,88174.0,0.6917956]
[1769452209628,0.17436,88183.0,88174.0,0.6917956]
[1769452209629,0.10180739,88183.0,88174.0,0.6917956]
[1769452209812,0.48742645,88191.0,88174.0,0.6917956]
[1769452209990,0.17436,88185.0,88174.0,0.6917956]